[Event "Fast Chess"]
[Site "ChessKid.com"]
[Date "2020.04.15"]
[Round "2"]
[White "Halimi, Dorian"]
[Black "Dai, Lana"]
[Result "0-1"]
[ECO "C46"]
[WhiteElo "970"]
[BlackElo "1278"]
[PlyCount "86"]
[EventDate "2020.??.??"]
[TimeControl "900"]
[WhiteClock "0:10:11"]
[BlackClock "0:10:48"]

1. e4 {[%emt 0:00:00]} e5 {[%emt 0:00:01]} 2. Nf3 {[%emt 0:00:03]} Nc6 {
[%emt 0:00:03]} 3. Nc3 {[%emt 0:00:04]} a6 {[%emt 0:00:01]} 4. h3 {[%emt 0:00:
04]} h6 {[%emt 0:00:01]} 5. a3 {[%emt 0:00:05]} Bc5 {[%emt 0:00:01]} 6. Bc4 {
[%emt 0:00:04]} d6 {[%emt 0:00:03]} 7. Nd5 {[%emt 0:00:02]} Be6 {[%emt 0:00:06]
} 8. d3 {[%emt 0:00:06]} Bxd5 {[%emt 0:00:05]} 9. Bxd5 {[%emt 0:00:02]} Nd4 {
[%emt 0:00:17]} 10. Nxd4 {[%emt 0:00:11]} Bxd4 {[%emt 0:00:05]} 11. Bxb7 {
[%emt 0:00:02]} Rb8 {[%emt 0:00:02]} 12. Bxa6 {[%emt 0:00:02]} Nf6 {[%emt 0:00:
07]} 13. c3 {[%emt 0:00:05]} Bc5 {[%emt 0:00:11]} 14. b4 {[%emt 0:00:03]} Ba7 {
[%emt 0:00:08]} 15. O-O {[%emt 0:00:05]} O-O {[%emt 0:00:02]} 16. Be3 {[%emt 0:
00:14]} Bxe3 {[%emt 0:00:04]} 17. fxe3 {[%emt 0:00:03]} Ra8 {[%emt 0:00:11]}
18. Bb7 {[%emt 0:00:06]} Ra7 {[%emt 0:00:02]} 19. Bc6 {[%emt 0:00:04]} Ra6 {
[%emt 0:00:04]} 20. Bb5 {[%emt 0:00:02]} Rb6 {[%emt 0:00:02]} 21. Bc4 {[%emt 0:
00:04]} c6 {[%emt 0:00:15]} 22. Qa4 {[%emt 0:00:03]} d5 {[%emt 0:00:15]} 23.
Bb5 {[%emt 0:00:12]} cxb5 {[%emt 0:00:10]} 24. Qa5 {[%emt 0:00:04]} dxe4 {
[%emt 0:00:06]} 25. d4 {[%emt 0:00:07]} exd4 {[%emt 0:00:02]} 26. exd4 {
[%emt 0:00:03]} Nd5 {[%emt 0:00:11]} 27. Qa7 {[%emt 0:00:04]} e3 {[%emt 0:00:
12]} 28. Rae1 {[%emt 0:00:13]} h5 {[%emt 0:00:33]} 29. Rf3 {[%emt 0:00:03]} Re6
{[%emt 0:00:20]} 30. Re2 {[%emt 0:00:24]} Re7 {[%emt 0:00:14]} 31. g4 {[%emt 0:
00:05]} Rxa7 {[%emt 0:00:06]} 32. gxh5 {[%emt 0:00:07]} Qg5+ {[%emt 0:00:02]}
33. Kh2 {[%emt 0:00:07]} Nxc3 {[%emt 0:00:03]} 34. Re1 {[%emt 0:00:13]} e2 {
[%emt 0:00:07]} 35. Rf2 {[%emt 0:00:13]} Rxa3 {[%emt 0:00:11]} 36. Rg1 {
[%emt 0:00:06]} Qe3 {[%emt 0:00:09]} 37. h4 {[%emt 0:00:17]} e1=Q {[%emt 0:00:
03]} 38. Rxe1 {[%emt 0:00:04]} Qxf2+ {[%emt 0:00:02]} 39. Kh1 {[%emt 0:00:07]}
Qxe1+ {[%emt 0:00:03]} 40. Kg2 {[%emt 0:00:02]} Nd1 {[%emt 0:00:04]} 41. Kh2 {
[%emt 0:00:03]} Qd2+ {[%emt 0:00:04]} 42. Kg1 {[%emt 0:00:04]} Qf2+ {[%emt 0:
00:02]} 43. Kh1 {[%emt 0:00:02]} Rh3# {[%emt 0:00:02] TopBrownCave won by
checkmate} 0-1

[Event "Fast Chess"]
[Site "ChessKid.com"]
[Date "2020.04.15"]
[Round "3"]
[White "Halimi, Dorian"]
[Black "Li, Tobias"]
[Result "0-1"]
[ECO "C47"]
[WhiteElo "963"]
[BlackElo "1288"]
[PlyCount "54"]
[EventDate "2020.??.??"]
[TimeControl "900"]
[WhiteClock "0:11:11"]
[BlackClock "0:04:05"]

1. e4 {[%emt 0:01:15]} e5 {[%emt 0:00:06]} 2. Nf3 {[%emt 0:00:02]} Nc6 {
[%emt 0:00:02]} 3. Nc3 {[%emt 0:00:04]} Nf6 {[%emt 0:00:02]} 4. Nd5 {[%emt 0:
00:04]} Nxd5 {[%emt 0:00:02]} 5. exd5 {[%emt 0:00:02]} Nb4 {[%emt 0:00:03]} 6.
Nxe5 {[%emt 0:00:05]} Nxd5 {[%emt 0:00:22]} 7. Bc4 {[%emt 0:00:05]} c6 {
[%emt 0:00:04]} 8. Qf3 {[%emt 0:00:08]} Qf6 {[%emt 0:00:13]} 9. Qxf6 {[%emt 0:
00:09]} Nxf6 {[%emt 0:00:04]} 10. Nxf7 {[%emt 0:00:08]} Rg8 {[%emt 0:00:02]}
11. O-O {[%emt 0:00:05]} d5 {[%emt 0:00:04]} 12. Re1+ {[%emt 0:00:03]} Be7 {
[%emt 0:00:10]} 13. Bxd5 {[%emt 0:00:16]} cxd5 {[%emt 0:00:03]} 14. b3 {
[%emt 0:00:05]} Kxf7 {[%emt 0:00:03]} 15. c4 {[%emt 0:00:07]} dxc4 {[%emt 0:00:
03]} 16. bxc4 {[%emt 0:00:02]} Re8 {[%emt 0:00:26]} 17. d3 {[%emt 0:00:04]} Kg8
{[%emt 0:00:08]} 18. Bg5 {[%emt 0:00:05]} Bf5 {[%emt 0:00:09]} 19. Rad1 {
[%emt 0:00:07]} Bg4 {[%emt 0:00:10]} 20. h3 {[%emt 0:00:01]} Bxd1 {[%emt 0:00:
02]} 21. Rxd1 {[%emt 0:00:03]} Nh5 {[%emt 0:00:01]} 22. Bxe7 {[%emt 0:00:08]}
Rxe7 {[%emt 0:00:06]} 23. g4 {[%emt 0:00:01]} Nf4 {[%emt 0:00:42]} 24. Rb1 {
[%emt 0:00:08]} Nxd3 {[%emt 0:00:04]} 25. Rd1 {[%emt 0:07:32]} Re1+ {[%emt 0:
00:30]} 26. Rxe1 {[%emt 0:00:06]} Nxe1 {[%emt 0:00:02]} 27. Kf1 {[%emt 0:00:02]
} Nd3 {[%emt 0:00:07] OnlyHungryKiwi won by resignation} 0-1

[Event "Fast Chess"]
[Site "ChessKid.com"]
[Date "2020.04.15"]
[Round "3"]
[White "Dai, Lana"]
[Black "Li, Patrick"]
[Result "1-0"]
[ECO "C27"]
[WhiteElo "1281"]
[BlackElo "1006"]
[PlyCount "61"]
[EventDate "2020.??.??"]
[TimeControl "900"]
[WhiteClock "0:09:08"]
[BlackClock "0:10:39"]

1. e4 {[%emt 0:00:05]} e5 {[%emt 0:00:03]} 2. Nc3 {[%emt 0:00:04]} Nf6 {
[%emt 0:00:05]} 3. Bc4 {[%emt 0:00:02]} Bc5 {[%emt 0:00:05]} 4. h3 {[%emt 0:00:
01]} Nc6 {[%emt 0:00:05]} 5. a3 {[%emt 0:00:02]} O-O {[%emt 0:00:06]} 6. d3 {
[%emt 0:00:01]} d6 {[%emt 0:00:04]} 7. Bg5 {[%emt 0:00:04]} h6 {[%emt 0:00:08]}
8. Bh4 {[%emt 0:00:03]} Nd4 {[%emt 0:00:46]} 9. Nd5 {[%emt 0:00:07]} Nxd5 {
[%emt 0:00:16]} 10. Bxd8 {[%emt 0:00:05]} Rxd8 {[%emt 0:00:05]} 11. Bxd5 {
[%emt 0:00:05]} Bd7 {[%emt 0:00:14]} 12. c3 {[%emt 0:00:16]} Ba4 {[%emt 0:00:
10]} 13. Qd2 {[%emt 0:00:39]} Nb3 {[%emt 0:00:06]} 14. Qe3 {[%emt 0:00:18]}
Nxa1 {[%emt 0:00:05]} 15. Qf3 {[%emt 0:00:00]} Nc2+ {[%emt 0:00:12]} 16. Kf1 {
[%emt 0:00:17]} a6 {[%emt 0:00:27]} 17. Qxf7+ {[%emt 0:00:03]} Kh7 {[%emt 0:00:
05]} 18. Qf5+ {[%emt 0:00:05]} Kh8 {[%emt 0:00:07]} 19. Bxb7 {[%emt 0:00:30]}
Rf8 {[%emt 0:00:06]} 20. Bxa8 {[%emt 0:00:37]} Rxf5 {[%emt 0:00:06]} 21. exf5 {
[%emt 0:00:03]} Kh7 {[%emt 0:00:17]} 22. Be4 {[%emt 0:00:08]} Na1 {[%emt 0:00:
38]} 23. f6+ {[%emt 0:00:07]} Kg8 {[%emt 0:00:05]} 24. Bd5+ {[%emt 0:00:02]}
Kh8 {[%emt 0:00:07]} 25. f7 {[%emt 0:00:04]} Nc2 {[%emt 0:00:27]} 26. f8=Q+ {
[%emt 0:00:10]} Kh7 {[%emt 0:00:07]} 27. Be4+ {[%emt 0:00:05]} g6 {[%emt 0:00:
09]} 28. Qf7+ {[%emt 0:00:01]} Kh8 {[%emt 0:00:06]} 29. Qxg6 {[%emt 0:00:07]}
Ne3+ {[%emt 0:00:35]} 30. fxe3 {[%emt 0:00:06]} Bxe3 {[%emt 0:00:01]} 31. Qh7#
{[%emt 0:00:04] TopBrownCave won by checkmate} 1-0

[Event "Fast Chess"]
[Site "ChessKid.com"]
[Date "2020.04.16"]
[Round "1"]
[White "Georgiev, Maximilian"]
[Black "Richter, Leon"]
[Result "1-0"]
[ECO "C41"]
[WhiteElo "1378"]
[BlackElo "1136"]
[PlyCount "113"]
[EventDate "2020.??.??"]
[TimeControl "300"]
[WhiteClock "0:01:19"]
[BlackClock "0:02:32"]

1. e4 {[%emt 0:00:00]} e5 {[%emt 0:00:01]} 2. Nf3 {[%emt 0:00:01]} d6 {[%emt 0:
00:02]} 3. Bc4 {[%emt 0:00:00]} Be7 {[%emt 0:00:18]} 4. O-O {[%emt 0:00:03]}
Nf6 {[%emt 0:00:04]} 5. Nc3 {[%emt 0:00:02]} O-O {[%emt 0:00:02]} 6. h3 {
[%emt 0:00:02]} d5 {[%emt 0:00:06]} 7. exd5 {[%emt 0:00:03]} c6 {[%emt 0:00:05]
} 8. dxc6 {[%emt 0:00:03]} Nxc6 {[%emt 0:00:03]} 9. d3 {[%emt 0:00:07]} Na5 {
[%emt 0:00:08]} 10. Bg5 {[%emt 0:00:04]} e4 {[%emt 0:00:04]} 11. dxe4 {[%emt 0:
00:03]} Nxc4 {[%emt 0:00:03]} 12. Bxf6 {[%emt 0:00:05]} Bxf6 {[%emt 0:00:03]}
13. Qxd8 {[%emt 0:00:06]} Rxd8 {[%emt 0:00:03]} 14. b3 {[%emt 0:00:04]} Nb2 {
[%emt 0:00:04]} 15. Ne2 {[%emt 0:00:06]} Be6 {[%emt 0:00:05]} 16. Rab1 {
[%emt 0:00:04]} Rd7 {[%emt 0:00:05]} 17. e5 {[%emt 0:00:03]} Bxe5 {[%emt 0:00:
10]} 18. Nxe5 {[%emt 0:00:02]} Rad8 {[%emt 0:00:06]} 19. Nxd7 {[%emt 0:00:03]}
Rxd7 {[%emt 0:00:03]} 20. Rxb2 {[%emt 0:00:00]} f5 {[%emt 0:00:11]} 21. Nf4 {
[%emt 0:00:03]} Bf7 {[%emt 0:00:06]} 22. Re1 {[%emt 0:00:04]} Rd4 {[%emt 0:00:
04]} 23. Ne2 {[%emt 0:00:06]} Re4 {[%emt 0:00:02]} 24. Kf1 {[%emt 0:00:06]} Bh5
{[%emt 0:00:07]} 25. Nc3 {[%emt 0:00:03]} Rxe1+ {[%emt 0:00:04]} 26. Kxe1 {
[%emt 0:00:01]} h6 {[%emt 0:00:07]} 27. f3 {[%emt 0:00:04]} Bf7 {[%emt 0:00:10]
} 28. g4 {[%emt 0:00:01]} fxg4 {[%emt 0:00:02]} 29. hxg4 {[%emt 0:00:01]} h5 {
[%emt 0:00:02]} 30. gxh5 {[%emt 0:00:02]} Bxh5 {[%emt 0:00:02]} 31. Kf2 {
[%emt 0:00:01]} g5 {[%emt 0:00:03]} 32. Ne4 {[%emt 0:00:04]} g4 {[%emt 0:00:05]
} 33. Nf6+ {[%emt 0:00:01]} Kg7 {[%emt 0:00:03]} 34. Nxh5+ {[%emt 0:00:01]} Kg6
{[%emt 0:00:04]} 35. fxg4 {[%emt 0:00:01]} Kg5 {[%emt 0:00:02]} 36. Ng3 {
[%emt 0:00:01]} Kxg4 {[%emt 0:00:01]} 37. Ne4 {[%emt 0:00:02]} Kf4 {[%emt 0:00:
02]} 38. Nd2 {[%emt 0:00:01]} b5 {[%emt 0:00:03]} 39. b4 {[%emt 0:00:01]} a6 {
[%emt 0:00:02]} 40. Rb3 {[%emt 0:00:01]} Ke5 {[%emt 0:00:03]} 41. Ke3 {[%emt 0:
00:02]} Kd5 {[%emt 0:00:02]} 42. Kd3 {[%emt 0:00:03]} Kc6 {[%emt 0:00:02]} 43.
Rc3+ {[%emt 0:00:02]} Kd5 {[%emt 0:00:03]} 44. Rc5+ {[%emt 0:00:05]} Kd6 {
[%emt 0:00:05]} 45. c4 {[%emt 0:00:04]} bxc4+ {[%emt 0:00:03]} 46. Rxc4 {
[%emt 0:00:01]} a5 {[%emt 0:00:03]} 47. bxa5 {[%emt 0:00:01]} Kd5 {[%emt 0:00:
02]} 48. a6 {[%emt 0:00:03]} Ke5 {[%emt 0:00:01]} 49. a7 {[%emt 0:00:02]} Kf5 {
[%emt 0:00:02]} 50. a8=Q {[%emt 0:00:02]} Ke5 {[%emt 0:00:04]} 51. Qe4+ {
[%emt 0:00:02]} Kd6 {[%emt 0:00:03]} 52. Qf5 {[%emt 0:00:01]} Ke7 {[%emt 0:00:
03]} 53. Rc7+ {[%emt 0:00:02]} Kd6 {[%emt 0:00:02]} 54. Rh7 {[%emt 0:00:10]}
Kc6 {[%emt 0:00:02]} 55. Rh6+ {[%emt 0:00:01]} Kb7 {[%emt 0:00:01]} 56. Qd7+ {
[%emt 0:00:02]} Kb8 {[%emt 0:00:03]} 57. Rh8# {[%emt 0:00:01] TallSnazzyBall
won by checkmate} 1-0

[Event "Fast Chess"]
[Site "ChessKid.com"]
[Date "2020.04.16"]
[Round "1"]
[White "Li, Patrick"]
[Black "Dai, Lana"]
[Result "0-1"]
[ECO "C55"]
[WhiteElo "985"]
[BlackElo "1284"]
[PlyCount "62"]
[EventDate "2020.??.??"]
[TimeControl "300"]
[WhiteClock "0:01:38"]
[BlackClock "0:01:48"]

1. e4 {[%emt 0:00:04]} e5 {[%emt 0:00:02]} 2. Nf3 {[%emt 0:00:01]} Nc6 {
[%emt 0:00:02]} 3. Nc3 {[%emt 0:00:01]} Nf6 {[%emt 0:00:02]} 4. Bc4 {[%emt 0:
00:02]} h6 {[%emt 0:00:02]} 5. O-O {[%emt 0:00:02]} Bc5 {[%emt 0:00:04]} 6. h3
{[%emt 0:00:03]} a6 {[%emt 0:00:02]} 7. Re1 {[%emt 0:00:07]} d6 {[%emt 0:00:03]
} 8. d3 {[%emt 0:00:03]} O-O {[%emt 0:00:10]} 9. a3 {[%emt 0:00:03]} Be6 {
[%emt 0:00:10]} 10. Be3 {[%emt 0:00:01]} Bxe3 {[%emt 0:00:12]} 11. Bxe6 {
[%emt 0:00:06]} fxe6 {[%emt 0:00:13]} 12. Rxe3 {[%emt 0:00:03]} Nd4 {[%emt 0:
00:06]} 13. Nxd4 {[%emt 0:00:06]} exd4 {[%emt 0:00:01]} 14. Rg3 {[%emt 0:00:06]
} dxc3 {[%emt 0:00:05]} 15. bxc3 {[%emt 0:00:00]} d5 {[%emt 0:00:04]} 16. exd5
{[%emt 0:00:03]} Nxd5 {[%emt 0:00:03]} 17. Qg4 {[%emt 0:00:05]} Qe7 {[%emt 0:
00:10]} 18. c4 {[%emt 0:00:11]} Nc3 {[%emt 0:00:04]} 19. Qg6 {[%emt 0:00:15]}
Ne2+ {[%emt 0:00:07]} 20. Kh2 {[%emt 0:00:13]} Nxg3 {[%emt 0:00:02]} 21. Qxg3 {
[%emt 0:00:03]} c5 {[%emt 0:00:17]} 22. Qg6 {[%emt 0:00:10]} Qd6+ {[%emt 0:00:
19]} 23. Kg1 {[%emt 0:00:05]} Rf6 {[%emt 0:00:07]} 24. Qe4 {[%emt 0:00:07]}
Raf8 {[%emt 0:00:11]} 25. Qxb7 {[%emt 0:00:10]} Rxf2 {[%emt 0:00:06]} 26. Re1 {
[%emt 0:00:07]} Qd4 {[%emt 0:00:10]} 27. Re4 {[%emt 0:00:08]} Rf1+ {[%emt 0:00:
17]} 28. Kh2 {[%emt 0:00:13]} Qd6+ {[%emt 0:00:02]} 29. g3 {[%emt 0:00:12]}
R1f2+ {[%emt 0:00:02]} 30. Kg1 {[%emt 0:00:03]} Qxg3+ {[%emt 0:00:06]} 31. Kh1
{[%emt 0:00:19]} Rf1# {[%emt 0:00:02] TopBrownCave won by checkmate} 0-1

[Event "Fast Chess"]
[Site "ChessKid.com"]
[Date "2020.04.16"]
[Round "1"]
[White "Sasse, Gabriel"]
[Black "Halimi, Dorian"]
[Result "1-0"]
[ECO "C20"]
[WhiteElo "1258"]
[BlackElo "955"]
[PlyCount "95"]
[EventDate "2020.??.??"]
[TimeControl "300"]
[WhiteClock "0:01:22"]
[BlackClock "0:01:24"]

1. e4 {[%emt 0:00:00]} e5 {[%emt 0:00:03]} 2. Qh5 {[%emt 0:00:02]} Qe7 {
[%emt 0:00:08]} 3. d3 {[%emt 0:00:03]} Nc6 {[%emt 0:00:02]} 4. Bg5 {[%emt 0:00:
02]} Qe6 {[%emt 0:00:06]} 5. g3 {[%emt 0:00:06]} d6 {[%emt 0:00:02]} 6. Bh3 {
[%emt 0:00:05]} Qe7 {[%emt 0:00:09]} 7. Bxe7 {[%emt 0:00:03]} Bxe7 {[%emt 0:00:
03]} 8. Bxc8 {[%emt 0:00:06]} g6 {[%emt 0:00:01]} 9. Qh3 {[%emt 0:00:07]} h5 {
[%emt 0:00:03]} 10. Bd7+ {[%emt 0:00:03]} Kd8 {[%emt 0:00:06]} 11. Bxc6 {
[%emt 0:00:04]} g5 {[%emt 0:00:02]} 12. Bxb7 {[%emt 0:00:07]} g4 {[%emt 0:00:
04]} 13. Qf1 {[%emt 0:00:02]} Rb8 {[%emt 0:00:05]} 14. Bc6 {[%emt 0:00:02]}
Rxb2 {[%emt 0:00:03]} 15. Na3 {[%emt 0:00:06]} Nf6 {[%emt 0:00:06]} 16. Qe2 {
[%emt 0:00:08]} Rh6 {[%emt 0:00:07]} 17. Qd1 {[%emt 0:00:06]} Rg6 {[%emt 0:00:
01]} 18. Qc1 {[%emt 0:00:03]} Rb6 {[%emt 0:00:03]} 19. Rb1 {[%emt 0:00:06]}
Rxb1 {[%emt 0:00:15]} 20. Qxb1 {[%emt 0:00:03]} Nd7 {[%emt 0:00:10]} 21. Bxd7 {
[%emt 0:00:07]} Kxd7 {[%emt 0:00:01]} 22. Qb5+ {[%emt 0:00:06]} c6 {[%emt 0:00:
03]} 23. Qb7+ {[%emt 0:00:03]} Ke6 {[%emt 0:00:02]} 24. Qxc6 {[%emt 0:00:03]}
a5 {[%emt 0:00:04]} 25. Qd5+ {[%emt 0:00:03]} Kd7 {[%emt 0:00:04]} 26. Qxf7 {
[%emt 0:00:03]} Re6 {[%emt 0:00:02]} 27. f3 {[%emt 0:00:03]} a4 {[%emt 0:00:11]
} 28. fxg4 {[%emt 0:00:04]} hxg4 {[%emt 0:00:02]} 29. h3 {[%emt 0:00:01]} gxh3
{[%emt 0:00:02]} 30. Nxh3 {[%emt 0:00:02]} Rh6 {[%emt 0:00:05]} 31. Qf5+ {
[%emt 0:00:05]} Ke8 {[%emt 0:00:05]} 32. g4 {[%emt 0:00:05]} Rh8 {[%emt 0:00:
01]} 33. g5 {[%emt 0:00:03]} Rg8 {[%emt 0:00:07]} 34. g6 {[%emt 0:00:02]} Rg7 {
[%emt 0:00:05]} 35. Qh5 {[%emt 0:00:05]} Bf6 {[%emt 0:00:03]} 36. Qh8+ {
[%emt 0:00:03]} Ke7 {[%emt 0:00:11]} 37. Nf2 {[%emt 0:00:10]} Ke6 {[%emt 0:00:
00]} 38. Qh3+ {[%emt 0:00:03]} Ke7 {[%emt 0:00:03]} 39. Qc8 {[%emt 0:00:06]}
Rxg6 {[%emt 0:00:20]} 40. Rh7+ {[%emt 0:00:04]} Bg7 {[%emt 0:00:03]} 41. Qc7+ {
[%emt 0:00:02]} Kf6 {[%emt 0:00:03]} 42. Qd8+ {[%emt 0:00:08]} Kf7 {[%emt 0:00:
03]} 43. Nb5 {[%emt 0:00:08]} Rg1+ {[%emt 0:00:03]} 44. Ke2 {[%emt 0:00:03]}
Kg6 {[%emt 0:00:05]} 45. Rh4 {[%emt 0:00:07]} Bf6 {[%emt 0:00:04]} 46. Qxd6 {
[%emt 0:00:02]} Rg2 {[%emt 0:00:05]} 47. Kf1 {[%emt 0:00:08]} Rg3 {[%emt 0:00:
03]} 48. Rh1 {[%emt 0:00:15] LimeFarActor won on time} 1-0

[Event "Fast Chess"]
[Site "ChessKid.com"]
[Date "2020.04.16"]
[Round "1"]
[White "Fennesz, Moritz"]
[Black "Li, Tobias"]
[Result "0-1"]
[ECO "B02"]
[WhiteElo "942"]
[BlackElo "1257"]
[PlyCount "80"]
[EventDate "2020.??.??"]
[TimeControl "300"]
[WhiteClock "0:01:59"]
[BlackClock "0:01:21"]

1. e4 {[%emt 0:00:04]} e5 {[%emt 0:00:01]} 2. d3 {[%emt 0:00:04]} Nf6 {[%emt 0:
00:04]} 3. f3 {[%emt 0:00:03]} Nc6 {[%emt 0:00:01]} 4. b4 {[%emt 0:00:07]} Nxb4
{[%emt 0:00:03]} 5. c3 {[%emt 0:00:03]} Nc6 {[%emt 0:00:03]} 6. Qe2 {[%emt 0:
00:16]} d5 {[%emt 0:00:03]} 7. exd5 {[%emt 0:00:08]} Qxd5 {[%emt 0:00:02]} 8.
Na3 {[%emt 0:00:04]} Bxa3 {[%emt 0:00:03]} 9. Bxa3 {[%emt 0:00:04]} Bf5 {
[%emt 0:00:16]} 10. O-O-O {[%emt 0:00:06]} O-O-O {[%emt 0:00:05]} 11. c4 {
[%emt 0:00:08]} Qd4 {[%emt 0:00:07]} 12. Kd2 {[%emt 0:00:13]} g6 {[%emt 0:00:
27]} 13. Qe3 {[%emt 0:00:05]} Qxe3+ {[%emt 0:00:09]} 14. Kxe3 {[%emt 0:00:04]}
Nd4 {[%emt 0:00:22]} 15. g4 {[%emt 0:00:06]} Be6 {[%emt 0:00:14]} 16. Be2 {
[%emt 0:00:18]} Nc2+ {[%emt 0:00:01]} 17. Kd2 {[%emt 0:00:06]} Nxa3 {[%emt 0:
00:01]} 18. Rc1 {[%emt 0:00:07]} Nxc4+ {[%emt 0:00:11]} 19. Kc3 {[%emt 0:00:09]
} Nb6 {[%emt 0:00:04]} 20. Nh3 {[%emt 0:00:08]} Bxa2 {[%emt 0:00:06]} 21. Rc2 {
[%emt 0:00:03]} Be6 {[%emt 0:00:04]} 22. Rb2 {[%emt 0:00:08]} Na4+ {[%emt 0:00:
02]} 23. Kc2 {[%emt 0:00:07]} Nxb2 {[%emt 0:00:01]} 24. Kxb2 {[%emt 0:00:02]}
h5 {[%emt 0:00:06]} 25. gxh5 {[%emt 0:00:03]} Bxh3 {[%emt 0:00:03]} 26. hxg6 {
[%emt 0:00:03]} fxg6 {[%emt 0:00:03]} 27. Bf1 {[%emt 0:00:08]} Bxf1 {[%emt 0:
00:01]} 28. Rxf1 {[%emt 0:00:03]} Rxd3 {[%emt 0:00:00]} 29. Rc1 {[%emt 0:00:06]
} Rxf3 {[%emt 0:00:03]} 30. Rc3 {[%emt 0:00:11]} Rxh2+ {[%emt 0:00:01]} 31. Kb3
{[%emt 0:00:04]} Rxc3+ {[%emt 0:00:06]} 32. Kxc3 {[%emt 0:00:03]} e4 {[%emt 0:
00:02]} 33. Kb4 {[%emt 0:00:02]} e3 {[%emt 0:00:01]} 34. Kc5 {[%emt 0:00:02]}
e2 {[%emt 0:00:00]} 35. Kd4 {[%emt 0:00:01]} e1=Q {[%emt 0:00:00]} 36. Kc5 {
[%emt 0:00:02]} Qe5+ {[%emt 0:00:03]} 37. Kb4 {[%emt 0:00:02]} Rh4+ {[%emt 0:
00:01]} 38. Ka3 {[%emt 0:00:03]} Qg3+ {[%emt 0:00:00]} 39. Ka2 {[%emt 0:00:02]}
Rh2+ {[%emt 0:00:01]} 40. Ka1 {[%emt 0:00:03]} Qg1# {[%emt 0:00:00]
OnlyHungryKiwi won by checkmate} 0-1

[Event "Fast Chess"]
[Site "ChessKid.com"]
[Date "2020.04.16"]
[Round "2"]
[White "Sasse, Gabriel"]
[Black "Georgiev, Maximilian"]
[Result "0-1"]
[ECO "B01"]
[WhiteElo "1253"]
[BlackElo "1384"]
[PlyCount "136"]
[EventDate "2020.??.??"]
[TimeControl "300"]
[WhiteClock "0:02:20"]
[BlackClock "0:02:00"]

1. e4 {[%emt 0:00:10]} d5 {[%emt 0:00:01]} 2. Nf3 {[%emt 0:00:01]} dxe4 {
[%emt 0:00:02]} 3. Ng1 {[%emt 0:00:01]} Nf6 {[%emt 0:00:02]} 4. d4 {[%emt 0:00:
02]} exd3 {[%emt 0:00:02]} 5. cxd3 {[%emt 0:00:04]} Nc6 {[%emt 0:00:03]} 6. Be3
{[%emt 0:00:14]} e5 {[%emt 0:00:03]} 7. Be2 {[%emt 0:00:05]} Be7 {[%emt 0:00:
04]} 8. Nf3 {[%emt 0:00:02]} O-O {[%emt 0:00:02]} 9. h3 {[%emt 0:00:01]} a6 {
[%emt 0:00:02]} 10. O-O {[%emt 0:00:01]} h6 {[%emt 0:00:02]} 11. Ne1 {[%emt 0:
00:02]} e4 {[%emt 0:00:03]} 12. b3 {[%emt 0:00:09]} exd3 {[%emt 0:00:03]} 13.
Bxd3 {[%emt 0:00:01]} Ne5 {[%emt 0:00:04]} 14. Bh7+ {[%emt 0:00:03]} Kxh7 {
[%emt 0:00:04]} 15. Qxd8 {[%emt 0:00:01]} Rxd8 {[%emt 0:00:01]} 16. Nc2 {
[%emt 0:00:06]} Bd6 {[%emt 0:00:06]} 17. Nd4 {[%emt 0:00:05]} Bc5 {[%emt 0:00:
03]} 18. Nf5 {[%emt 0:00:03]} Bxe3 {[%emt 0:00:02]} 19. Nxe3 {[%emt 0:00:01]}
Bd7 {[%emt 0:00:05]} 20. Nf5 {[%emt 0:00:03]} Bxf5 {[%emt 0:00:02]} 21. Nc3 {
[%emt 0:00:03]} Bd3 {[%emt 0:00:02]} 22. Rfd1 {[%emt 0:00:04]} Bc2 {[%emt 0:00:
06]} 23. Rxd8 {[%emt 0:00:02]} Rxd8 {[%emt 0:00:01]} 24. Rc1 {[%emt 0:00:05]}
Bg6 {[%emt 0:00:03]} 25. Ne2 {[%emt 0:00:02]} Nd3 {[%emt 0:00:03]} 26. Rd1 {
[%emt 0:00:03]} Bh5 {[%emt 0:00:05]} 27. Kf1 {[%emt 0:00:03]} Bxe2+ {[%emt 0:
00:02]} 28. Kxe2 {[%emt 0:00:02]} c5 {[%emt 0:00:07]} 29. Rxd3 {[%emt 0:00:05]}
Rxd3 {[%emt 0:00:01]} 30. Kxd3 {[%emt 0:00:01]} b5 {[%emt 0:00:03]} 31. Ke3 {
[%emt 0:00:05]} Nd5+ {[%emt 0:00:03]} 32. Ke4 {[%emt 0:00:01]} Nc3+ {[%emt 0:
00:01]} 33. Kd3 {[%emt 0:00:09]} Nxa2 {[%emt 0:00:01]} 34. Kc2 {[%emt 0:00:02]}
Nb4+ {[%emt 0:00:01]} 35. Kc3 {[%emt 0:00:02]} Nd5+ {[%emt 0:00:02]} 36. Kd3 {
[%emt 0:00:03]} Nf4+ {[%emt 0:00:02]} 37. Ke4 {[%emt 0:00:05]} Nxg2 {[%emt 0:
00:01]} 38. Kd5 {[%emt 0:00:01]} Nf4+ {[%emt 0:00:04]} 39. Kxc5 {[%emt 0:00:01]
} Nxh3 {[%emt 0:00:01]} 40. Kb6 {[%emt 0:00:01]} Nxf2 {[%emt 0:00:01]} 41. Kxa6
{[%emt 0:00:00]} h5 {[%emt 0:00:01]} 42. Kxb5 {[%emt 0:00:01]} Ne4 {[%emt 0:00:
02]} 43. b4 {[%emt 0:00:01]} h4 {[%emt 0:00:03]} 44. Kc6 {[%emt 0:00:02]} Nc3 {
[%emt 0:00:02]} 45. Kc5 {[%emt 0:00:03]} h3 {[%emt 0:00:05]} 46. Kc4 {[%emt 0:
00:01]} Na4 {[%emt 0:00:02]} 47. Kb5 {[%emt 0:00:04]} Nc3+ {[%emt 0:00:02]} 48.
Kc4 {[%emt 0:00:01]} Ne2 {[%emt 0:00:02]} 49. b5 {[%emt 0:00:02]} h2 {[%emt 0:
00:01]} 50. b6 {[%emt 0:00:01]} h1=Q {[%emt 0:00:02]} 51. Kc5 {[%emt 0:00:02]}
Qb7 {[%emt 0:00:04]} 52. Kb5 {[%emt 0:00:02]} Nd4+ {[%emt 0:00:02]} 53. Kc5 {
[%emt 0:00:01]} Nb3+ {[%emt 0:00:04]} 54. Kb5 {[%emt 0:00:01]} Qxb6+ {[%emt 0:
00:03]} 55. Kxb6 {[%emt 0:00:02]} g5 {[%emt 0:00:02]} 56. Kb5 {[%emt 0:00:02]}
g4 {[%emt 0:00:01]} 57. Kc4 {[%emt 0:00:01]} g3 {[%emt 0:00:01]} 58. Kd3 {
[%emt 0:00:01]} g2 {[%emt 0:00:01]} 59. Kc3 {[%emt 0:00:01]} g1=Q {[%emt 0:00:
01]} 60. Kxb3 {[%emt 0:00:01]} Qd4 {[%emt 0:00:02]} 61. Kc2 {[%emt 0:00:02]} f5
{[%emt 0:00:03]} 62. Kb3 {[%emt 0:00:02]} f4 {[%emt 0:00:01]} 63. Kc2 {[%emt 0:
00:02]} f3 {[%emt 0:00:01]} 64. Kb1 {[%emt 0:00:01]} f2 {[%emt 0:00:01]} 65.
Kc2 {[%emt 0:00:01]} f1=Q {[%emt 0:00:02]} 66. Kb3 {[%emt 0:00:02]} Qfd3+ {
[%emt 0:00:01]} 67. Ka2 {[%emt 0:00:04]} Qf2+ {[%emt 0:00:02]} 68. Ka1 {
[%emt 0:00:04]} Qdf1# {[%emt 0:00:01] TallSnazzyBall won by checkmate} 0-1